[Event "Early-Titled-Tuesday-Blitz-February-27-2024"]
[Site "Chess.com"]
[Date "2024.02.27"]
[Round "6"]
[White "PawnEatingZombie"]
[Black "sorch29"]
[Result "1-0"]
[WhiteElo "2175"]
[BlackElo "2397"]
[TimeControl "180+1"]
[EndTime "9:06:41 PST"]
[Termination "PawnEatingZombie won by checkmate"]

1. e4 {[%clk 0:03:00.9]} 1... c5 {[%clk 0:02:36.2]} 2. c3 {[%clk 0:03:00.4]}
2... Nf6 {[%clk 0:02:35.8]} 3. e5 {[%clk 0:03:00.6]} 3... Nd5 {[%clk 0:02:36.2]}
4. Nf3 {[%clk 0:03:00.5]} 4... Nc6 {[%clk 0:02:35.2]} 5. Bc4 {[%clk 0:02:58.7]}
5... Nb6 {[%clk 0:02:34.9]} 6. Bb3 {[%clk 0:02:59.3]} 6... d6 {[%clk 0:02:32.9]}
7. exd6 {[%clk 0:02:58.3]} 7... Qxd6 {[%clk 0:02:33.6]} 8. O-O {[%clk 0:02:58]}
8... c4 {[%clk 0:02:31.9]} 9. Bc2 {[%clk 0:02:57.5]} 9... Bg4 {[%clk 0:02:31.5]}
10. h3 {[%clk 0:02:56.2]} 10... Bh5 {[%clk 0:02:30.3]} 11. Re1 {[%clk
0:02:56.5]} 11... Rd8 {[%clk 0:02:27.4]} 12. a4 {[%clk 0:02:50.3]} 12... e6
{[%clk 0:02:23]} 13. a5 {[%clk 0:02:49.5]} 13... Nd5 {[%clk 0:01:55.6]} 14. Na3
{[%clk 0:02:25.5]} 14... Nxa5 {[%clk 0:01:45.4]} 15. Nb5 {[%clk 0:02:25]} 15...
Qb6 {[%clk 0:01:43.9]} 16. Ba4 {[%clk 0:02:18.3]} 16... Nc6 {[%clk 0:01:42.9]}
17. Nbd4 {[%clk 0:01:44.1]} 17... Bc5 {[%clk 0:01:38]} 18. Bxc6+ {[%clk
0:01:38.4]} 18... bxc6 {[%clk 0:01:37.6]} 19. Qa4 {[%clk 0:01:38.5]} 19... O-O
{[%clk 0:01:20.6]} 20. Qxc6 {[%clk 0:01:34]} 20... Nf4 {[%clk 0:01:11]} 21. Qxb6
{[%clk 0:01:31.9]} 21... axb6 {[%clk 0:01:10.9]} 22. Ne5 {[%clk 0:00:52.6]}
22... Rd5 {[%clk 0:00:47.6]} 23. Nxc4 {[%clk 0:00:50.2]} 23... Nd3 {[%clk
0:00:44.1]} 24. Re3 {[%clk 0:00:42]} 24... Bxd4 {[%clk 0:00:40.7]} 25. cxd4
{[%clk 0:00:36.4]} 25... Rxd4 {[%clk 0:00:35.6]} 26. Ne5 {[%clk 0:00:17.6]}
26... Nxe5 {[%clk 0:00:29.7]} 27. Rxe5 {[%clk 0:00:17.7]} 27... Bg6 {[%clk
0:00:22.9]} 28. Rb5 {[%clk 0:00:17.4]} 28... Rc8 {[%clk 0:00:18]} 29. b3 {[%clk
0:00:15.1]} 29... h6 {[%clk 0:00:14.6]} 30. Ba3 {[%clk 0:00:07.9]} 30... Rxd2
{[%clk 0:00:13.9]} 31. Rxb6 {[%clk 0:00:08.1]} 31... Rd3 {[%clk 0:00:14.4]} 32.
Bd6 {[%clk 0:00:06.8]} 32... Kh7 {[%clk 0:00:10.8]} 33. b4 {[%clk 0:00:06.5]}
33... Be4 {[%clk 0:00:10.9]} 34. Bg3 {[%clk 0:00:06.4]} 34... Bd5 {[%clk
0:00:10.7]} 35. Ra7 {[%clk 0:00:05.8]} 35... Kg6 {[%clk 0:00:10.7]} 36. Rd6
{[%clk 0:00:05.4]} 36... Rc1+ {[%clk 0:00:08.1]} 37. Kh2 {[%clk 0:00:05]} 37...
Rb1 {[%clk 0:00:04.2]} 38. Rdd7 {[%clk 0:00:05.2]} 38... e5 {[%clk 0:00:04.7]}
39. Bxe5 {[%clk 0:00:04.2]} 39... Rxb4 {[%clk 0:00:05.3]} 40. Bg3 {[%clk
0:00:03.4]} 40... Rb6 {[%clk 0:00:04.9]} 41. Ra5 {[%clk 0:00:02.9]} 41... Bc4
{[%clk 0:00:04.2]} 42. Rxd3 {[%clk 0:00:03]} 42... Bxd3 {[%clk 0:00:05.1]} 43.
Rd5 {[%clk 0:00:03.1]} 43... Be4 {[%clk 0:00:05]} 44. Rd4 {[%clk 0:00:03.7]}
44... Bc6 {[%clk 0:00:05.4]} 45. f3 {[%clk 0:00:04.2]} 45... Ra6 {[%clk
0:00:05.8]} 46. Be5 {[%clk 0:00:04.4]} 46... Bb5 {[%clk 0:00:06]} 47. Bg3 {[%clk
0:00:04.7]} 47... f6 {[%clk 0:00:06.2]} 48. Bf4 {[%clk 0:00:05.1]} 48... Kh7
{[%clk 0:00:06.6]} 49. h4 {[%clk 0:00:05.7]} 49... Bd7 {[%clk 0:00:06.8]} 50.
Kg3 {[%clk 0:00:05.8]} 50... Be6 {[%clk 0:00:07.1]} 51. h5 {[%clk 0:00:05.6]}
51... Bf7 {[%clk 0:00:06.8]} 52. Kh4 {[%clk 0:00:04.6]} 52... Ra2 {[%clk
0:00:06.9]} 53. g4 {[%clk 0:00:04.7]} 53... Rf2 {[%clk 0:00:06]} 54. Kg3 {[%clk
0:00:04.9]} 54... Rf1 {[%clk 0:00:05.7]} 55. Kg2 {[%clk 0:00:05.4]} 55... Rb1
{[%clk 0:00:04.6]} 56. Kg3 {[%clk 0:00:05.8]} 56... Kg8 {[%clk 0:00:04.9]} 57.
Re4 {[%clk 0:00:05.8]} 57... Bd5 {[%clk 0:00:05.2]} 58. Re3 {[%clk 0:00:06.3]}
58... Kf7 {[%clk 0:00:05.3]} 59. Kg2 {[%clk 0:00:06]} 59... Rb5 {[%clk
0:00:05.5]} 60. Kg3 {[%clk 0:00:06.4]} 60... Be6 {[%clk 0:00:05.4]} 61. Kg2
{[%clk 0:00:06.6]} 61... Rb7 {[%clk 0:00:06.1]} 62. Kg3 {[%clk 0:00:07]} 62...
Rd7 {[%clk 0:00:06.7]} 63. Kg2 {[%clk 0:00:07.5]} 63... f5 {[%clk 0:00:07.2]}
64. g5 {[%clk 0:00:06.5]} 64... hxg5 {[%clk 0:00:07.1]} 65. Bxg5 {[%clk
0:00:06.9]} 65... Rd5 {[%clk 0:00:08]} 66. f4 {[%clk 0:00:06.9]} 66... Rd2+
{[%clk 0:00:07.7]} 67. Kg3 {[%clk 0:00:06.8]} 67... Rd1 {[%clk 0:00:08.3]} 68.
h6 {[%clk 0:00:07]} 68... gxh6 {[%clk 0:00:07.6]} 69. Bxh6 {[%clk 0:00:07.3]}
69... Rg1+ {[%clk 0:00:07.4]} 70. Kf2 {[%clk 0:00:07]} 70... Rg6 {[%clk
0:00:07.7]} 71. Bg5 {[%clk 0:00:07.2]} 71... Rg8 {[%clk 0:00:08.5]} 72. Rc3
{[%clk 0:00:07.2]} 72... Re8 {[%clk 0:00:06.3]} 73. Rc7+ {[%clk 0:00:07.1]}
73... Kg6 {[%clk 0:00:06.9]} 74. Kg3 {[%clk 0:00:06.5]} 74... Bf7 {[%clk
0:00:05.9]} 75. Rc6+ {[%clk 0:00:06.2]} 75... Be6 {[%clk 0:00:04.9]} 76. Rc7
{[%clk 0:00:06.1]} 76... Bf7 {[%clk 0:00:04.6]} 77. Rc6+ {[%clk 0:00:06.4]}
77... Kg7 {[%clk 0:00:05.2]} 78. Rc7 {[%clk 0:00:05.8]} 78... Re3+ {[%clk
0:00:05]} 79. Kf2 {[%clk 0:00:05.9]} 79... Rd3 {[%clk 0:00:05.7]} 80. Ke2 {[%clk
0:00:05.5]} 80... Ra3 {[%clk 0:00:05.1]} 81. Kf2 {[%clk 0:00:05]} 81... Kg6
{[%clk 0:00:05.3]} 82. Rc6+ {[%clk 0:00:04.6]} 82... Kh5 {[%clk 0:00:05.7]} 83.
Rh6+ {[%clk 0:00:03.7]} 83... Kg4 {[%clk 0:00:02.5]} 84. Rh4# {[%clk 0:00:03.8]}
1-0

[Event "Early-Titled-Tuesday-Blitz-February-27-2024"]
[Site "Chess.com"]
[Date "2024.02.27"]
[Round "6"]
[White "vugarrasulov"]
[Black "wonderfultime"]
[Result "0-1"]
[WhiteElo "3010"]
[BlackElo "3099"]
[TimeControl "180+1"]
[EndTime "9:06:44 PST"]
[Termination "wonderfultime won by resignation"]

1. e4 {[%clk 0:03:00.9]} 1... e5 {[%clk 0:02:57.9]} 2. Nf3 {[%clk 0:03:00.6]}
2... Nc6 {[%clk 0:02:58]} 3. Bb5 {[%clk 0:03:00.7]} 3... a6 {[%clk 0:02:58.2]}
4. Ba4 {[%clk 0:03:00.8]} 4... Bc5 {[%clk 0:02:58.3]} 5. O-O {[%clk 0:02:58]}
5... Nge7 {[%clk 0:02:58.5]} 6. c3 {[%clk 0:02:55]} 6... Ng6 {[%clk 0:02:58.8]}
7. d4 {[%clk 0:02:54]} 7... Ba7 {[%clk 0:02:59.1]} 8. Bg5 {[%clk 0:02:50.9]}
8... f6 {[%clk 0:02:59.5]} 9. Be3 {[%clk 0:02:51.3]} 9... O-O {[%clk 0:03:00]}
10. Nbd2 {[%clk 0:02:50]} 10... d6 {[%clk 0:03:00.4]} 11. Re1 {[%clk 0:02:38.8]}
11... Kh8 {[%clk 0:03:00.2]} 12. Nf1 {[%clk 0:02:34.7]} 12... Bg4 {[%clk
0:02:53.4]} 13. Bxc6 {[%clk 0:02:29.2]} 13... bxc6 {[%clk 0:02:52.1]} 14. h3
{[%clk 0:02:27]} 14... Be6 {[%clk 0:02:42.8]} 15. Ng3 {[%clk 0:02:25.7]} 15...
c5 {[%clk 0:02:21.9]} 16. Qd2 {[%clk 0:02:13.7]} 16... cxd4 {[%clk 0:01:59.5]}
17. cxd4 {[%clk 0:02:14.6]} 17... c5 {[%clk 0:02:00.2]} 18. dxc5 {[%clk
0:02:08.5]} 18... Bxc5 {[%clk 0:01:57.1]} 19. Bxc5 {[%clk 0:02:02]} 19... dxc5
{[%clk 0:01:58]} 20. Qxd8 {[%clk 0:02:01.7]} 20... Rfxd8 {[%clk 0:01:58.9]} 21.
Rec1 {[%clk 0:01:53.7]} 21... c4 {[%clk 0:01:55.5]} 22. Ne2 {[%clk 0:01:50]}
22... Rab8 {[%clk 0:01:51.3]} 23. Rc2 {[%clk 0:01:49]} 23... h6 {[%clk
0:01:16.9]} 24. Rac1 {[%clk 0:01:47.1]} 24... Rd6 {[%clk 0:01:12.2]} 25. Nd2
{[%clk 0:01:30.6]} 25... Rdb6 {[%clk 0:01:12.1]} 26. Rb1 {[%clk 0:01:27.2]}
26... Kh7 {[%clk 0:01:09.2]} 27. f3 {[%clk 0:01:21.7]} 27... h5 {[%clk
0:01:00.4]} 28. Kf2 {[%clk 0:01:19.3]} 28... h4 {[%clk 0:01:00.9]} 29. Ke3
{[%clk 0:01:18.8]} 29... Kh6 {[%clk 0:01:00.8]} 30. f4 {[%clk 0:01:16.2]} 30...
exf4+ {[%clk 0:00:58.4]} 31. Nxf4 {[%clk 0:01:17.1]} 31... Nxf4 {[%clk
0:00:58.2]} 32. Kxf4 {[%clk 0:01:18]} 32... c3 {[%clk 0:00:58.3]} 33. Rxc3
{[%clk 0:01:08.5]} 33... Rxb2 {[%clk 0:00:57.8]} 34. Rxb2 {[%clk 0:00:57.5]}
34... Rxb2 {[%clk 0:00:58.7]} 35. Ke3 {[%clk 0:00:58.2]} 35... Rxa2 {[%clk
0:00:57.6]} 36. Rc6 {[%clk 0:00:56.4]} 36... Bd7 {[%clk 0:00:56.5]} 37. Rd6
{[%clk 0:00:55.8]} 37... Bb5 {[%clk 0:00:56.9]} 38. e5 {[%clk 0:00:54.9]} 38...
Kg6 {[%clk 0:00:47.1]} 39. exf6 {[%clk 0:00:53.4]} 39... gxf6 {[%clk 0:00:47]}
40. Ne4 {[%clk 0:00:47.7]} 40... Kf5 {[%clk 0:00:21.2]} 41. Rd5+ {[%clk
0:00:41.7]} 41... Ke6 {[%clk 0:00:21.3]} 42. Rh5 {[%clk 0:00:42.2]} 42... Rxg2
{[%clk 0:00:19.7]} 43. Rxh4 {[%clk 0:00:42.6]} 43... Ke5 {[%clk 0:00:18.6]} 44.
Nc3 {[%clk 0:00:22.8]} 44... Rg3+ {[%clk 0:00:17.9]} 45. Kd2 {[%clk 0:00:23.5]}
45... Rd3+ {[%clk 0:00:17.9]} 46. Kc2 {[%clk 0:00:23.7]} 46... Rd8 {[%clk
0:00:17.3]} 47. Re4+ {[%clk 0:00:18.7]} 47... Kf5 {[%clk 0:00:17.6]} 48. Rb4
{[%clk 0:00:18.6]} 48... Be8 {[%clk 0:00:10.5]} 49. h4 {[%clk 0:00:17]} 49... a5
{[%clk 0:00:10.2]} 50. Rc4 {[%clk 0:00:17]} 50... Ke5 {[%clk 0:00:07.4]} 51.
Rc5+ {[%clk 0:00:12]} 51... Kf4 {[%clk 0:00:08]} 52. Rxa5 {[%clk 0:00:11.7]}
52... Kg4 {[%clk 0:00:07.5]} 53. Nd5 {[%clk 0:00:08.4]} 53... Rd6 {[%clk
0:00:07.1]} 54. Kc3 {[%clk 0:00:06.3]} 54... Kxh4 {[%clk 0:00:05.8]} 55. Ne7
{[%clk 0:00:06.6]} 55... Kg4 {[%clk 0:00:04.5]} 56. Ra8 {[%clk 0:00:06.6]} 56...
Bf7 {[%clk 0:00:04.3]} 57. Rf8 {[%clk 0:00:06.5]} 57... Ba2 {[%clk 0:00:03.6]}
58. Kb2 {[%clk 0:00:05.3]} 58... Bc4 {[%clk 0:00:04.2]} 59. Kc3 {[%clk 0:00:05]}
59... Bd3 {[%clk 0:00:04.8]} 60. Ng8 {[%clk 0:00:04.5]} 60... f5 {[%clk
0:00:03.7]} 61. Nf6+ {[%clk 0:00:05.2]} 61... Kf3 {[%clk 0:00:03.7]} 62. Ne8
{[%clk 0:00:04.9]} 62... Rd8 {[%clk 0:00:04.1]} 63. Rf7 {[%clk 0:00:03.9]} 63...
Rxe8 {[%clk 0:00:04]} 64. Kxd3 {[%clk 0:00:04.3]} 64... f4 {[%clk 0:00:04.8]}
65. Kd2 {[%clk 0:00:04.8]} 65... Kg3 {[%clk 0:00:05.1]} 66. Rg7+ {[%clk
0:00:04]} 66... Kf2 {[%clk 0:00:05.5]} 67. Rg6 {[%clk 0:00:04.4]} 67... f3
{[%clk 0:00:05.9]} 68. Rd6 {[%clk 0:00:03.5]} 68... Kf1 {[%clk 0:00:05.9]} 69.
Rg6 {[%clk 0:00:03.4]} 69... f2 {[%clk 0:00:06]} 70. Rg7 {[%clk 0:00:04]} 70...
Rd8+ {[%clk 0:00:06.5]} 71. Kc2 {[%clk 0:00:04.3]} 71... Rd5 {[%clk 0:00:07]}
72. Kc3 {[%clk 0:00:04.4]} 72... Ke2 {[%clk 0:00:07.4]} 73. Re7+ {[%clk
0:00:05]} 73... Kf3 {[%clk 0:00:07.7]} 74. Rf7+ {[%clk 0:00:05.1]} 74... Ke3
{[%clk 0:00:08.3]} 75. Rf8 {[%clk 0:00:05]} 75... Rd1 {[%clk 0:00:07.7]} 76.
Re8+ {[%clk 0:00:04.1]} 76... Kf3 {[%clk 0:00:08]} 77. Rf8+ {[%clk 0:00:05]}
77... Kg3 {[%clk 0:00:08.7]} 78. Rg8+ {[%clk 0:00:04.8]} 78... Kh4 {[%clk
0:00:09.3]} 79. Rh8+ {[%clk 0:00:04.8]} 79... Kg5 {[%clk 0:00:10]} 80. Rg8+
{[%clk 0:00:05.7]} 80... Kh6 {[%clk 0:00:10.5]} 81. Rf8 {[%clk 0:00:05.9]} 81...
f1=Q {[%clk 0:00:10.3]} 82. Rxf1 {[%clk 0:00:06.8]} 82... Rxf1 {[%clk
0:00:11.2]} 0-1

[Event "Early-Titled-Tuesday-Blitz-February-27-2024"]
[Site "Chess.com"]
[Date "2024.02.27"]
[Round "6"]
[White "chess94cu"]
[Black "Lion-Al-Messi"]
[Result "0-1"]
[WhiteElo "2677"]
[BlackElo "2535"]
[TimeControl "180+1"]
[EndTime "9:07:07 PST"]
[Termination "Lion-Al-Messi won by checkmate"]

1. Nf3 {[%clk 0:03:00.9]} 1... Nf6 {[%clk 0:02:59.4]} 2. c4 {[%clk 0:03:00.9]}
2... b6 {[%clk 0:02:58.8]} 3. Nc3 {[%clk 0:03:00.7]} 3... Bb7 {[%clk 0:02:59.3]}
4. d4 {[%clk 0:03:00.7]} 4... e6 {[%clk 0:02:58.3]} 5. a3 {[%clk 0:02:58.6]}
5... d5 {[%clk 0:02:58.3]} 6. Bg5 {[%clk 0:02:55.9]} 6... Be7 {[%clk 0:02:58]}
7. Bxf6 {[%clk 0:02:54.8]} 7... Bxf6 {[%clk 0:02:58.1]} 8. cxd5 {[%clk
0:02:55.7]} 8... exd5 {[%clk 0:02:56.9]} 9. g3 {[%clk 0:02:56.3]} 9... O-O
{[%clk 0:02:57.2]} 10. Bg2 {[%clk 0:02:57]} 10... Nd7 {[%clk 0:02:57.6]} 11. O-O
{[%clk 0:02:57.8]} 11... c6 {[%clk 0:02:56.3]} 12. Rc1 {[%clk 0:02:55.4]} 12...
a5 {[%clk 0:02:56.3]} 13. Re1 {[%clk 0:02:54.5]} 13... b5 {[%clk 0:02:56.6]} 14.
e3 {[%clk 0:02:53.2]} 14... Nb6 {[%clk 0:02:56.7]} 15. Ne2 {[%clk 0:02:47.5]}
15... Nc4 {[%clk 0:02:52.5]} 16. Qc2 {[%clk 0:02:47.6]} 16... b4 {[%clk
0:02:51]} 17. a4 {[%clk 0:02:42.8]} 17... Qd6 {[%clk 0:02:45.3]} 18. b3 {[%clk
0:02:41.6]} 18... Nb6 {[%clk 0:02:43.9]} 19. Nf4 {[%clk 0:02:41.5]} 19... g6
{[%clk 0:02:39.8]} 20. Nd3 {[%clk 0:02:40.9]} 20... Nd7 {[%clk 0:02:40]} 21. h4
{[%clk 0:02:39.3]} 21... Bg7 {[%clk 0:02:39.4]} 22. Bh3 {[%clk 0:02:35.3]} 22...
Nf6 {[%clk 0:02:32.6]} 23. Nc5 {[%clk 0:02:13.6]} 23... Bc8 {[%clk 0:02:32.8]}
24. Bxc8 {[%clk 0:02:12.6]} 24... Raxc8 {[%clk 0:02:32.9]} 25. Nb7 {[%clk
0:02:12.6]} 25... Qc7 {[%clk 0:02:32.6]} 26. Nc5 {[%clk 0:02:11.1]} 26... Rfe8
{[%clk 0:02:28.5]} 27. Ne5 {[%clk 0:02:07.6]} 27... Bf8 {[%clk 0:02:28.8]} 28.
Ned3 {[%clk 0:02:02.4]} 28... h5 {[%clk 0:02:25.3]} 29. Kg2 {[%clk 0:02:02.5]}
29... Kg7 {[%clk 0:02:25]} 30. Qe2 {[%clk 0:02:00.6]} 30... Bd6 {[%clk
0:02:24.4]} 31. Qf3 {[%clk 0:02:00.5]} 31... Qe7 {[%clk 0:02:23.6]} 32. Rc2
{[%clk 0:01:59.4]} 32... Ng4 {[%clk 0:02:21.5]} 33. Nf4 {[%clk 0:01:40.7]} 33...
Bb8 {[%clk 0:02:03.9]} 34. Rec1 {[%clk 0:01:26.7]} 34... Qf6 {[%clk 0:02:04]}
35. Ncd3 {[%clk 0:01:21.7]} 35... Red8 {[%clk 0:01:18.8]} 36. Ne2 {[%clk
0:01:04.9]} 36... Qe6 {[%clk 0:01:13.5]} 37. Nc5 {[%clk 0:01:00.1]} 37... Qe7
{[%clk 0:01:12.4]} 38. Nf4 {[%clk 0:00:59.9]} 38... Nf6 {[%clk 0:01:10.5]} 39.
Ncd3 {[%clk 0:00:59.7]} 39... Ne4 {[%clk 0:01:10.3]} 40. Rxc6 {[%clk 0:00:57.3]}
40... Rxc6 {[%clk 0:00:54.4]} 41. Rxc6 {[%clk 0:00:58.2]} 41... Nc3 {[%clk
0:00:54.6]} 42. Nc5 {[%clk 0:00:53.5]} 42... Bd6 {[%clk 0:00:51.5]} 43. Nxd5
{[%clk 0:00:41.4]} 43... Nxd5 {[%clk 0:00:45.8]} 44. Qxd5 {[%clk 0:00:42.3]}
44... Bxg3 {[%clk 0:00:40.7]} 45. Qe4 {[%clk 0:00:40.9]} 45... Bxh4 {[%clk
0:00:21]} 46. Ra6 {[%clk 0:00:30.4]} 46... Qg5+ {[%clk 0:00:20.2]} 47. Kf1
{[%clk 0:00:29.7]} 47... Rd5 {[%clk 0:00:10.1]} 48. Ra7 {[%clk 0:00:27.5]} 48...
Qf6 {[%clk 0:00:10.4]} 49. f4 {[%clk 0:00:24.8]} 49... Rf5 {[%clk 0:00:06]} 50.
Nd7 {[%clk 0:00:14.8]} 50... Qd6 {[%clk 0:00:03.1]} 51. Ne5 {[%clk 0:00:14.4]}
51... Qf8 {[%clk 0:00:02.9]} 52. Rxa5 {[%clk 0:00:12.8]} 52... Qc8 {[%clk
0:00:03.2]} 53. Qc6 {[%clk 0:00:11.7]} 53... Qd8 {[%clk 0:00:03]} 54. Ra7 {[%clk
0:00:11.1]} 54... Rf6 {[%clk 0:00:02.6]} 55. Qc4 {[%clk 0:00:10.3]} 55... Qe8
{[%clk 0:00:02.2]} 56. Qb5 {[%clk 0:00:09.7]} 56... Qe6 {[%clk 0:00:01.3]} 57.
Qd7 {[%clk 0:00:10.2]} 57... Qxb3 {[%clk 0:00:01.5]} 58. Qc8 {[%clk 0:00:05.5]}
58... Qd1+ {[%clk 0:00:01.8]} 59. Kg2 {[%clk 0:00:05.9]} 59... Qe2+ {[%clk
0:00:02.3]} 60. Kh1 {[%clk 0:00:04.5]} 60... Qf1+ {[%clk 0:00:02.1]} 61. Kh2
{[%clk 0:00:05.1]} 61... Qf2+ {[%clk 0:00:02.5]} 62. Kh1 {[%clk 0:00:05.5]}
62... Bg3 {[%clk 0:00:02.8]} 63. Qh3 {[%clk 0:00:04.7]} 63... Qe1+ {[%clk
0:00:02.5]} 64. Kg2 {[%clk 0:00:04.2]} 64... Qf2+ {[%clk 0:00:03]} 65. Kh1
{[%clk 0:00:04.4]} 65... h4 {[%clk 0:00:03.1]} 66. Qg2 {[%clk 0:00:04]} 66...
Qe1+ {[%clk 0:00:03.3]} 67. Qg1 {[%clk 0:00:04.3]} 67... Qe2 {[%clk 0:00:03.6]}
68. Qg2 {[%clk 0:00:02.6]} 68... Qxe3 {[%clk 0:00:03.8]} 69. Ng4 {[%clk
0:00:02.5]} 69... Qc1+ {[%clk 0:00:03.6]} 70. Qg1 {[%clk 0:00:02.3]} 70... Qc6+
{[%clk 0:00:04.2]} 71. Qg2 {[%clk 0:00:02.5]} 71... Qc1+ {[%clk 0:00:04.5]} 72.
Qg1 {[%clk 0:00:02.9]} 72... Qxg1+ {[%clk 0:00:04.6]} 73. Kxg1 {[%clk
0:00:03.8]} 73... Rxf4 {[%clk 0:00:05.2]} 74. Ne5 {[%clk 0:00:04.4]} 74... Rxd4
{[%clk 0:00:03.8]} 75. Rxf7+ {[%clk 0:00:03.5]} 75... Kg8 {[%clk 0:00:04.1]} 76.
Nf3 {[%clk 0:00:03.7]} 76... Rd1+ {[%clk 0:00:03.5]} 77. Kg2 {[%clk 0:00:04.1]}
77... Kxf7 {[%clk 0:00:04.4]} 78. Ng5+ {[%clk 0:00:03.7]} 78... Ke7 {[%clk
0:00:04.2]} 79. Ne4 {[%clk 0:00:04.6]} 79... Re1 {[%clk 0:00:04.4]} 80. Nc5
{[%clk 0:00:04.4]} 80... b3 {[%clk 0:00:04.7]} 81. Nxb3 {[%clk 0:00:04]} 81...
Re2+ {[%clk 0:00:05.3]} 82. Kh3 {[%clk 0:00:03.6]} 82... Rh2+ {[%clk 0:00:05.6]}
83. Kg4 {[%clk 0:00:03.5]} 83... Rb2 {[%clk 0:00:06.5]} 84. Nd4 {[%clk
0:00:03.1]} 84... Rb4 {[%clk 0:00:07.4]} 85. Kh3 {[%clk 0:00:02.6]} 85... Rxd4
{[%clk 0:00:08.3]} 86. a5 {[%clk 0:00:03.2]} 86... Ra4 {[%clk 0:00:08.6]} 87. a6
{[%clk 0:00:04.1]} 87... Rxa6 {[%clk 0:00:09.1]} 88. Kg2 {[%clk 0:00:04.8]}
88... Ra5 {[%clk 0:00:09.6]} 89. Kh3 {[%clk 0:00:05.7]} 89... g5 {[%clk
0:00:10.1]} 90. Kg4 {[%clk 0:00:05.7]} 90... Rb5 {[%clk 0:00:10.8]} 91. Kh3
{[%clk 0:00:06.6]} 91... Rb4 {[%clk 0:00:11]} 92. Kg2 {[%clk 0:00:06.7]} 92...
g4 {[%clk 0:00:11.6]} 93. Kh1 {[%clk 0:00:06.7]} 93... Rb2 {[%clk 0:00:11.7]}
94. Kg1 {[%clk 0:00:07]} 94... h3 {[%clk 0:00:11.3]} 95. Kf1 {[%clk 0:00:07.4]}
95... Rf2+ {[%clk 0:00:11.6]} 96. Kg1 {[%clk 0:00:07.6]} 96... h2+ {[%clk
0:00:11.8]} 97. Kh1 {[%clk 0:00:08.1]} 97... Rf1+ {[%clk 0:00:11.9]} 98. Kg2
{[%clk 0:00:09]} 98... h1=Q+ {[%clk 0:00:12.2]} 99. Kxg3 {[%clk 0:00:09.9]}
99... Qh3# {[%clk 0:00:12.4]} 0-1